bitfinex-derivatives/quotes_BNBF0:USTF0_20250305
["timestamp","ask_amount","ask_price","bid_price","bid_amount"]
[1741218013850,0.96172331,598.9,598.08,0.33440342]
[1741218014248,1.20067192,598.9,598.08,0.33440342]
[1741218014648,4.20601929,598.98,598.08,0.33440342]
[1741218014846,3.00534737,598.97,598.08,0.33440342]
[1741218015049,0.96172331,598.96,598.08,0.33440342]
[1741218015251,1.20067192,598.96,598.08,0.33440342]
[1741218015448,0.96466991,598.95,598.08,0.33440342]
[1741218015648,0.96466991,598.94,598.08,0.33440342]
[1741218015851,2.16534183,598.93,598.08,0.33440342]
[1741218016054,0.96466991,598.92,598.12,1.24565047]
[1741218016253,0.96466991,598.91,598.12,1.24565047]
[1741218016449,0.96466991,598.92,598.12,1.24565047]
[1741218016651,0.96466991,598.91,598.12,1.24565047]
[1741218016853,0.96466991,598.92,598.12,1.24565047]
[1741218017046,2.16534183,598.91,598.12,1.24565047]
[1741218017253,0.96466991,598.9,598.12,1.24565047]
[1741218017549,0.9646471,598.9,598.12,1.24565047]
[1741218018154,0.9646471,598.94,598.12,1.24565047]
[1741218018351,0.9646471,598.93,598.13,0.33437547]
[1741218018558,0.9646471,598.92,598.13,0.33437547]
[1741218018756,0.9646471,598.91,598.13,0.33437547]
[1741218018950,2.16531902,598.9,598.13,0.33437547]
[1741218019154,0.9646471,598.89,598.13,0.33437547]
[1741218019354,3.70875439,598.91,598.13,0.33437547]
[1741218019554,2.50808247,598.9,598.13,0.33437547]
[1741218019757,1.20067192,598.89,598.13,0.33437547]
[1741218020557,3.00919634,598.92,598.13,0.33437547]
[1741218020757,2.50808247,598.91,598.13,0.33437547]
[1741218020952,2.16531902,598.9,598.13,0.33437547]
[1741218021156,0.9646471,598.89,598.13,0.33437547]
[1741218021353,3.70875439,598.94,598.13,0.33437547]
[1741218021553,3.00919634,598.93,598.13,0.33437547]
[1741218021855,2.50808247,598.92,598.13,0.33437547]
[1741218022060,0.9646471,598.91,598.13,0.33437547]
[1741218022353,0.9646471,598.91,598.16,1.24565047]
[1741218022657,0.9646471,598.94,598.17,0.33435311]
[1741218022959,2.16531902,598.93,598.17,0.33435311]
[1741218023159,0.9646471,598.92,598.17,0.33435311]
[1741218023360,0.9646471,598.91,598.17,0.33435311]
[1741218023660,0.9646471,598.9,598.17,0.33435311]
[1741218023959,0.9646471,598.89,598.17,0.33435311]
[1741218024352,0.9646471,598.88,598.17,0.33435311]
[1741218024558,0.9646471,598.87,598.17,0.33435311]
[1741218024760,0.9646471,598.93,598.17,0.33435311]
[1741218024954,0.9646471,598.92,598.17,0.33435311]
[1741218025155,0.9646471,598.91,598.17,0.33435311]
[1741218025356,0.9646471,598.9,598.17,0.33435311]
[1741218025561,0.9646471,598.89,598.17,0.33435311]
[1741218025761,0.9646471,598.88,598.17,0.33435311]
[1741218025957,2.16531902,598.87,598.17,0.33435311]
[1741218026165,0.9646471,598.86,598.17,0.33435311]
[1741218026357,0.9646471,598.85,598.17,0.33435311]
[1741218026662,0.9646471,598.84,598.17,0.33435311]
[1741218027255,1.06175232,598.97,598.17,0.33435311]
[1741218027256,0.9646471,598.83,598.17,0.33435311]
[1741218027459,2.16531902,598.86,598.17,0.33435311]
[1741218027659,0.9646471,598.85,598.17,0.33435311]
[1741218028064,2.16531902,598.84,598.17,0.33435311]
[1741218028262,0.9646471,598.83,598.17,0.33435311]
[1741218028562,0.9646471,598.82,598.17,0.33435311]
[1741218028762,3.00919634,598.87,598.17,0.33435311]
[1741218028961,2.50808247,598.86,598.17,0.33435311]
[1741218029161,0.9646471,598.85,598.17,0.33435311]
[1741218029360,0.9646471,598.84,598.17,0.33435311]
[1741218029659,0.9646471,598.83,598.17,0.33435311]
[1741218029857,2.16531902,598.82,598.17,0.33435311]
[1741218030063,0.9646471,598.81,598.17,0.33435311]
[1741218030258,0.9646471,598.8,598.17,0.33435311]
[1741218030457,0.9646471,598.79,598.17,0.33435311]
[1741218030656,0.9646471,598.78,598.17,0.33435311]
[1741218030855,0.9646471,598.77,598.17,0.49735311]
[1741218031061,0.9646471,598.76,598.17,0.49735311]
[1741218031259,0.9646471,598.75,598.17,0.49735311]
[1741218031458,0.9646471,598.74,598.17,0.49735311]
[1741218031660,0.9646471,598.73,598.17,0.49735311]
[1741218031958,0.9646471,598.72,598.17,0.49735311]
[1741218032159,0.9646471,598.71,598.17,0.49735311]
[1741218032357,1.20067192,598.72,598.17,0.49735311]
[1741218032358,0.9646471,598.7,598.17,0.49735311]
[1741218032556,0.9646471,598.69,598.17,0.49735311]
[1741218032757,0.9646471,598.68,598.17,0.49735311]
[1741218032962,0.9646471,598.67,598.17,0.49735311]
[1741218033164,0.9646471,598.68,598.17,0.49735311]
[1741218033364,0.9646471,598.67,598.17,0.49735311]
[1741218033557,0.9646471,598.66,598.17,0.49735311]
[1741218033758,2.16531902,598.66,598.17,0.49735311]
[1741218033964,0.9646471,598.65,598.17,0.49735311]
[1741218034470,2.16531902,598.65,598.17,0.49735311]
[1741218034764,0.9646471,598.64,598.17,0.49735311]
[1741218034966,0.9646471,598.63,598.17,0.49735311]
[1741218035165,0.9646471,598.62,598.17,0.49735311]
[1741218035362,0.9646471,598.61,598.17,0.49735311]
[1741218035565,0.96730588,598.6,598.17,0.49735311]
[1741218035762,2.51499529,598.77,598.17,0.49735311]
[1741218035967,2.51499529,598.76,598.17,0.49735311]
[1741218036164,2.51499529,598.75,598.17,0.49735311]
[1741218036363,3.71566721,598.74,598.17,0.49735311]
[1741218036569,4.21688362,598.73,598.17,0.49735311]
[1741218036870,3.0162117,598.72,598.17,0.49735311]
[1741218037068,2.1679778,598.71,598.17,0.49735311]
[1741218037265,0.96730588,598.7,598.17,0.49735311]
[1741218037467,0.96730588,598.69,598.17,0.49735311]
[1741218037665,0.96730588,598.68,598.17,0.49735311]
[1741218037870,0.96730588,598.67,598.17,0.49735311]
[1741218038168,2.1679778,598.66,598.17,0.49735311]
[1741218038368,0.96730588,598.65,598.17,0.49735311]
[1741218038569,2.1679778,598.64,598.17,0.49735311]
[1741218038771,0.96730588,598.63,598.17,0.49735311]
[1741218038968,0.96730588,598.62,598.17,0.49735311]
[1741218039165,0.96730588,598.61,598.17,0.49735311]
[1741218039368,2.1679778,598.62,598.17,0.49735311]
[1741218039564,0.96730588,598.61,598.17,0.49735311]
[1741218039869,1.20067192,598.6,598.17,0.49735311]
[1741218040170,2.1679778,598.6,598.17,0.49735311]
[1741218040470,0.96730588,598.59,598.17,0.49735311]
[1741218040668,2.51499529,598.7,598.17,0.49735311]
[1741218040868,0.96730588,598.69,598.17,0.49735311]
[1741218041066,0.96730588,598.68,598.17,0.49735311]
[1741218041265,0.96730588,598.67,598.17,0.49735311]
[1741218041466,1.20067192,598.67,598.17,0.49735311]
[1741218041669,0.96704103,598.66,598.17,0.49735311]
[1741218041870,0.96704103,598.65,598.17,0.49735311]
[1741218042070,2.16771295,598.64,598.17,0.49735311]
[1741218042271,0.96704103,598.63,598.17,0.49735311]
[1741218042464,0.96704103,598.62,598.17,0.49735311]
[1741218042664,0.96704103,598.61,598.17,0.49735311]
[1741218042869,0.96704103,598.6,598.17,0.49735311]
[1741218043069,0.96704103,598.61,598.17,0.49735311]
[1741218043267,2.16771295,598.61,598.17,0.49735311]
[1741218043468,0.96704103,598.6,598.17,0.49735311]
[1741218043665,0.96704103,598.59,598.17,0.49735311]
[1741218043970,1.20067192,598.59,598.17,0.49735311]
[1741218044167,2.16760143,598.59,598.17,0.49735311]
[1741218044372,0.96692951,598.58,598.17,0.49735311]
[1741218044566,0.96692951,598.57,598.17,0.49735311]
[1741218044966,2.16760143,598.57,598.17,0.49735311]
[1741218045167,0.96692951,598.56,598.17,0.49735311]
[1741218045366,1.20067192,598.57,598.17,0.49735311]
[1741218045871,3.01527643,598.67,598.17,0.49735311]
[1741218046069,1.20067192,598.68,598.17,0.49735311]
[1741218046070,0.96692951,598.66,598.17,0.49735311]
[1741218046265,2.16760143,598.65,598.17,0.49735311]
[1741218046466,0.96692951,598.64,598.17,0.49735311]
[1741218046668,0.96692951,598.63,598.17,0.49735311]
[1741218046966,2.16760143,598.62,598.17,0.49735311]
[1741218047172,0.96653313,598.61,598.17,0.49735311]
[1741218047570,0.96653313,598.6,598.17,0.49735311]
[1741218047973,0.96653313,598.59,598.17,0.49735311]
[1741218048173,0.96653313,598.58,598.17,0.49735311]
[1741218048373,0.96653313,598.61,598.17,0.49735311]
[1741218048575,0.96653313,598.6,598.17,0.49735311]
[1741218048771,0.96653313,598.59,598.17,0.49735311]
[1741218048971,0.96653313,598.58,598.17,0.49735311]
[1741218049170,0.96653313,598.57,598.17,0.49735311]
[1741218049374,1.20067192,598.6,598.17,0.49735311]
[1741218049375,0.96653313,598.56,598.17,0.49735311]
[1741218049576,0.96653313,598.55,598.17,0.49735311]
[1741218049778,0.96653313,598.54,598.17,0.49735311]
[1741218050175,2.16720505,598.54,598.17,0.49735311]
[1741218050374,0.96653313,598.53,598.17,0.49735311]
[1741218050571,1.20067192,598.54,598.17,0.49735311]
[1741218050774,3.01426574,598.67,598.17,0.163]
[1741218050971,2.16720505,598.66,598.17,0.163]
[1741218051176,0.96653313,598.65,598.17,0.163]
[1741218051374,0.96653313,598.64,598.17,0.163]
[1741218051570,0.96653313,598.63,598.17,0.163]
[1741218051771,0.96653313,598.62,598.17,0.163]
[1741218052078,0.96653313,598.61,598.17,0.163]
[1741218052276,0.96653313,598.6,598.17,0.163]
[1741218052477,0.96653313,598.59,598.17,0.163]
[1741218052776,0.96653313,598.58,598.17,0.163]
[1741218052976,0.96653313,598.57,597.85,0.29089207]
[1741218053175,0.96653313,598.56,597.85,0.29089207]
[1741218053377,1.20067192,598.56,597.85,0.29089207]
[1741218053773,2.16720505,598.57,597.85,0.29089207]
[1741218053975,0.96653313,598.56,597.85,0.29089207]
[1741218054476,1.20067192,598.57,597.85,0.29089207]
[1741218054676,3.01434457,598.65,597.85,0.29089207]
[1741218054976,3.71365807,598.64,597.85,0.29089207]
[1741218055177,3.01434457,598.63,597.85,0.29089207]
[1741218055377,0.96653313,598.62,597.85,0.29089207]
[1741218055678,0.96653313,598.61,597.85,0.29089207]
[1741218055975,2.16720505,598.6,597.63,1.24565047]
[1741218056176,0.96653313,598.59,597.86,0.163]
[1741218056476,1.20067192,598.59,597.86,0.163]
[1741218057380,1.20067192,598.6,597.86,0.163]
[1741218057970,0.29093706,598.61,597.86,0.163]
[1741218058171,2.80392321,598.61,597.86,0.163]
[1741218058373,1.20067192,598.6,597.86,0.163]
[1741218058572,3.71365807,598.6,597.86,0.163]
[1741218058778,2.51298615,598.59,597.86,0.163]
[1741218059078,0.96653313,598.59,597.86,0.163]
[1741218059275,2.51298615,598.59,597.86,0.163]
[1741218059476,1.20067192,598.59,597.86,0.163]
[1741218059979,0.29093706,598.61,597.86,0.163]
[1741218060281,0.96653313,598.69,597.87,0.33452088]
[1741218060477,0.96653313,598.68,597.87,0.33452088]
[1741218060682,1.20067192,598.68,597.87,0.33452088]
[1741218061182,2.16720505,598.68,597.87,0.33452088]
[1741218061681,0.96653313,598.67,597.87,0.33452088]
[1741218061882,2.16720505,598.68,597.87,0.33452088]
[1741218062083,0.96653313,598.67,597.87,0.33452088]
[1741218062283,2.16720505,598.69,597.87,0.33452088]
[1741218062484,0.96653313,598.68,597.87,0.33452088]
[1741218062683,1.20067192,598.7,597.87,0.33452088]
[1741218063186,0.96653313,598.7,597.87,0.33452088]
[1741218063480,2.50918351,598.7,597.87,0.33452088]
[1741218063686,1.20067192,598.69,597.87,0.33452088]
[1741218064282,1.20298731,598.69,597.87,0.33452088]
[1741218064987,1.20298731,598.7,597.87,0.33452088]
[1741218065581,2.16952044,598.71,597.87,0.33452088]
[1741218065981,0.96653313,598.7,597.87,0.33452088]
[1741218066187,2.16952044,598.72,597.87,0.33452088]
[1741218066889,2.16952044,598.71,597.87,0.33452088]
[1741218067187,0.96653313,598.7,597.87,0.33452088]
[1741218067388,2.50918351,598.71,597.87,0.33452088]
[1741218067589,0.96653313,598.7,597.87,0.33452088]
[1741218067884,2.16952044,598.71,597.87,0.33452088]
[1741218068189,0.96653313,598.7,597.87,0.33452088]
[1741218068487,1.20298731,598.71,597.87,0.33452088]
[1741218070686,2.16952044,598.72,597.87,0.33452088]
[1741218071492,2.16952044,598.72,597.88,0.163]
[1741218071792,2.16952044,598.72,597.89,0.33450969]
[1741218071992,1.20298731,598.71,597.89,0.33450969]
[1741218074401,2.16693448,598.71,597.89,0.33450969]
[1741218074599,2.16693448,598.7,597.89,0.33450969]
[1741218074901,0.96394717,598.69,597.89,0.33450969]
[1741218075394,0.96394717,598.7,597.89,0.33450969]
[1741218075594,2.16693448,598.71,597.89,0.33450969]
[1741218075795,1.20298731,598.7,597.89,0.33450969]
[1741218076398,0.96394717,598.7,597.89,0.33450969]
[1741218076593,1.20298731,598.71,597.89,0.33450969]
[1741218076594,2.16693448,598.71,597.89,0.33450969]
[1741218076798,0.96394717,598.7,597.89,0.33450969]
[1741218076997,2.16693448,598.7,597.89,0.33450969]
[1741218077198,0.96394717,598.69,597.89,0.33450969]
[1741218077398,1.20298731,598.69,597.89,0.33450969]
[1741218077796,2.16693448,598.69,597.89,0.33450969]
[1741218077993,0.96394717,598.68,597.89,0.33450969]
[1741218078795,2.16693448,598.68,597.89,0.33450969]
[1741218078995,0.96394717,598.67,597.89,0.33450969]
[1741218079395,0.96394717,598.66,597.89,0.33450969]
[1741218079602,0.96394717,598.65,597.89,0.33450969]
[1741218079798,0.96394717,598.64,597.89,0.33450969]
[1741218079999,0.96394717,598.63,597.89,0.33450969]
[1741218080198,0.96394717,598.62,597.89,0.33450969]
[1741218080399,0.96394717,598.61,597.89,0.33450969]
[1741218080600,0.96394717,598.6,597.89,0.33450969]
[1741218080798,0.96394717,598.59,597.89,0.33450969]
[1741218080997,0.96394717,598.58,597.89,0.33450969]
[1741218081199,0.96394717,598.57,597.89,0.33450969]
[1741218081397,1.20298731,598.61,597.89,0.33450969]
[1741218081398,2.16693448,598.56,597.89,0.33450969]
[1741218081601,0.96394717,598.55,597.89,0.33450969]
[1741218081804,0.96394717,598.54,597.89,0.33450969]
[1741218082001,0.96394717,598.53,597.89,0.33450969]
[1741218082198,1.20298731,598.54,597.89,0.33450969]
[1741218082398,0.96394717,598.53,597.89,0.33450969]
[1741218082701,2.16693448,598.52,597.89,0.33450969]
[1741218082903,0.96394717,598.51,597.89,0.33450969]
[1741218083104,0.96394717,598.5,597.89,0.33450969]
[1741218083305,0.96394717,598.49,597.89,0.33450969]
[1741218083505,0.96394717,598.48,597.89,0.33450969]
[1741218083702,0.96394717,598.47,597.89,0.33450969]
[1741218084101,2.16693448,598.47,597.89,0.33450969]
[1741218084300,0.96394717,598.46,597.89,0.33450969]
[1741218084505,1.20298731,598.47,597.89,0.33450969]
[1741218084702,0.96394717,598.59,597.89,0.33450969]
[1741218084907,0.96394717,598.58,597.89,0.33450969]
[1741218085107,0.96394717,598.57,597.89,0.33450969]
[1741218085303,0.96394717,598.56,597.89,0.33450969]
[1741218085506,0.96394717,598.55,597.89,0.33450969]
[1741218085707,0.96394717,598.54,597.89,0.33450969]
[1741218086007,2.16742506,598.53,597.89,0.33450969]
[1741218086202,0.96443775,598.52,597.89,0.33450969]
[1741218086508,2.97542506,598.51,597.89,0.33450969]
[1741218086709,2.50753815,598.5,597.89,0.33450969]
[1741218087005,0.96443775,598.49,597.89,0.33450969]
[1741218087405,1.20298731,598.48,597.89,0.33450969]
[1741218087803,2.16742506,598.48,597.89,0.33450969]
[1741218088003,0.96443775,598.47,597.89,0.33450969]
[1741218088512,2.50753815,598.47,597.89,0.33450969]
[1741218088706,0.96443775,598.47,597.89,0.33450969]
[1741218089410,0.96443775,598.48,597.89,0.33450969]
[1741218089811,1.20298731,598.47,597.89,0.33450969]
[1741218090609,1.20298731,598.48,597.89,0.33450969]
[1741218090809,2.16742506,598.48,597.89,0.33450969]
[1741218091014,0.96443775,598.47,597.89,0.33450969]
[1741218091412,1.20298731,598.46,597.89,0.33450969]
[1741218091618,2.16742506,598.46,597.89,0.33450969]
[1741218091819,0.96443775,598.45,597.89,0.33450969]
[1741218092319,0.96443775,598.48,597.89,0.33450969]
[1741218092516,2.16742506,598.48,597.89,0.33450969]
[1741218092717,0.96443775,598.47,597.89,0.33450969]
[1741218092916,1.20298731,598.47,597.89,0.33450969]
[1741218093315,2.16742506,598.47,597.89,0.33450969]
[1741218093514,0.96443775,598.46,597.89,0.33450969]
[1741218093922,0.96443775,598.47,597.89,0.33450969]
[1741218094424,2.16742506,598.47,597.89,0.33450969]
[1741218094617,0.96443775,598.46,597.89,0.33450969]
[1741218094818,1.20298731,598.47,597.89,0.33450969]
[1741218095020,2.16742506,598.48,597.89,0.33450969]
[1741218095218,0.96443775,598.47,597.89,0.33450969]
[1741218095416,2.16742506,598.48,597.89,0.33450969]
[1741218095621,0.96443775,598.47,597.89,0.33450969]
[1741218095815,2.16742506,598.48,597.89,0.33450969]
[1741218096019,0.96443775,598.47,597.89,0.33450969]
[1741218096218,1.20298731,598.47,597.89,0.33450969]
[1741218097420,1.20298731,598.46,597.89,0.33450969]
[1741218097620,2.16742506,598.46,597.89,0.33450969]
[1741218097824,0.96443775,598.45,597.89,0.33450969]
[1741218098221,1.20298731,598.47,597.89,0.33450969]
[1741218098622,1.20298731,598.47,597.9,0.163]
[1741218098821,2.16742506,598.47,597.9,0.163]
[1741218099028,2.16742506,598.46,597.9,0.163]
[1741218099329,0.96443775,598.45,597.9,0.163]
[1741218099527,1.20298731,598.46,597.9,0.163]
[1741218099721,1.20298731,598.48,597.9,0.163]
[1741218099926,2.16742506,598.48,597.9,0.163]
[1741218100122,0.96443775,598.47,597.9,0.163]
[1741218100325,1.20298731,598.47,597.9,0.163]
[1741218100720,1.20298731,598.46,597.9,0.163]
[1741218101329,1.20298731,598.47,597.9,0.163]
[1741218102027,2.16742506,598.47,597.9,0.163]
[1741218102233,0.96448744,598.46,597.9,0.163]
[1741218102427,1.20298731,598.46,597.9,0.163]
[1741218102827,1.20298731,598.45,597.9,0.163]
[1741218103832,1.20298731,598.47,597.9,0.163]
[1741218104429,1.20298731,598.48,597.9,0.163]
[1741218104628,2.16747475,598.48,597.9,0.163]
[1741218104834,0.96448744,598.47,597.9,0.163]
[1741218105034,2.50766735,598.49,597.9,0.163]
[1741218105333,0.96448744,598.48,597.9,0.163]
[1741218105533,2.50766735,598.49,597.9,0.163]
[1741218105729,1.20298731,598.49,597.9,0.163]
[1741218106330,0.808,598.51,597.9,0.163]
[1741218108036,2.01098731,598.51,597.9,0.163]
[1741218113135,0.808,598.51,597.9,0.163]
[1741218117338,0.808,598.51,597.91,0.3344985]
[1741218118639,0.96458979,598.68,597.91,0.3344985]
[1741218118837,0.96458979,598.67,597.91,0.3344985]
[1741218119036,0.96458979,598.66,597.91,0.3344985]
[1741218119245,0.96458979,598.65,597.91,0.3344985]
[1741218119444,0.96458979,598.64,597.91,0.3344985]
[1741218119642,0.96458979,598.63,597.91,0.3344985]
[1741218120139,2.1675771,598.63,597.91,0.3344985]
[1741218120343,0.96458979,598.62,597.91,0.3344985]
[1741218120541,1.20298731,598.63,597.91,0.3344985]
[1741218121045,0.96458979,598.62,597.91,0.3344985]
[1741218121240,2.1675771,598.7,597.91,0.3344985]
[1741218121438,0.96458979,598.69,597.91,0.3344985]
[1741218121639,0.96458979,598.68,597.91,0.3344985]
[1741218121841,0.96458979,598.67,597.91,0.3344985]
[1741218122041,0.96458979,598.66,597.91,0.3344985]
[1741218122343,0.96458979,598.65,597.91,0.3344985]
[1741218122644,0.96458979,598.64,597.91,0.3344985]
[1741218122843,0.96458979,598.63,597.91,0.3344985]
[1741218123042,0.96458979,598.62,597.91,0.3344985]
[1741218123238,1.20298731,598.62,597.91,0.3344985]
[1741218123643,2.1675771,598.62,597.91,0.3344985]
[1741218123839,0.96458979,598.61,597.91,0.3344985]
[1741218124041,2.1675771,598.61,597.91,0.3344985]
[1741218124245,0.96458979,598.6,597.91,0.3344985]
[1741218124838,1.20298731,598.59,597.91,0.3344985]
[1741218125043,2.1675771,598.59,597.91,0.3344985]
[1741218125243,2.1675771,598.58,597.91,0.3344985]
[1741218125441,0.96458979,598.57,597.91,0.3344985]
[1741218125640,1.20298731,598.58,597.91,0.3344985]
[1741218125846,1.20298731,598.57,597.91,0.3344985]
[1741218126548,1.20298731,598.56,597.91,0.3344985]
[1741218126743,2.16781119,598.56,597.91,0.4974985]
[1741218127047,2.16781119,598.55,597.91,0.4974985]
[1741218127247,0.96482388,598.54,597.91,0.4974985]
[1741218127442,1.20298731,598.55,597.91,0.4974985]
[1741218127647,0.96482388,598.6,597.91,0.4974985]
[1741218128044,1.20298731,598.59,597.91,0.4974985]
[1741218128243,2.16781119,598.59,597.91,0.4974985]
[1741218128550,0.96482388,598.58,597.91,0.4974985]
[1741218129252,0.96482388,598.67,597.91,0.4974985]
[1741218129444,1.20298731,598.68,597.91,0.4974985]
[1741218129445,0.96482388,598.66,597.91,0.4974985]
[1741218129644,0.96482388,598.65,597.91,0.4974985]
[1741218129844,0.96482388,598.64,597.91,0.4974985]
[1741218130043,2.16781119,598.63,597.91,0.4974985]
[1741218130346,0.96482388,598.62,597.91,0.4974985]
[1741218130547,0.96482388,598.61,597.91,0.4974985]
[1741218130747,2.16781119,598.6,597.91,0.4974985]
[1741218130951,0.96482388,598.59,597.91,0.4974985]
[1741218131146,2.16781119,598.59,597.91,0.4974985]
[1741218131450,0.96482388,598.58,597.91,0.4974985]
[1741218131649,2.16781119,598.58,597.91,0.4974985]
[1741218131853,0.96482388,598.57,597.91,0.4974985]
[1741218132350,2.16781119,598.61,597.91,0.4974985]
[1741218132550,0.96482388,598.6,597.91,0.4974985]
[1741218132745,1.20298731,598.61,597.91,0.4974985]
[1741218133044,2.0450503,598.69,597.91,0.4974985]
[1741218133045,1.20298731,598.6,597.91,0.4974985]
[1741218133445,1.20298731,598.59,597.91,0.4974985]
[1741218133952,2.16781119,598.63,597.91,0.4974985]
[1741218134247,2.16781119,598.62,597.91,0.4974985]
[1741218134447,0.96482388,598.61,597.91,0.4974985]
[1741218134654,0.96482388,598.6,597.91,0.4974985]
[1741218134851,1.20298731,598.59,597.91,0.4974985]
[1741218135251,2.16781119,598.59,597.91,0.4974985]
[1741218135452,0.96482388,598.58,597.91,0.4974985]
[1741218135649,1.20298731,598.59,597.91,0.4974985]
[1741218135852,0.96482388,598.66,597.91,0.4974985]
[1741218136052,2.16781119,598.65,597.91,0.4974985]
[1741218136352,0.96482388,598.64,597.91,0.4974985]
[1741218136554,0.96482388,598.63,597.91,0.4974985]
[1741218136748,1.20298731,598.64,597.91,0.4974985]
[1741218137160,2.16781119,598.63,597.91,0.4974985]
[1741218137355,0.96482388,598.62,597.91,0.4974985]
[1741218137751,1.20298731,598.61,597.91,0.4974985]
[1741218138351,1.20298731,598.6,597.91,0.4974985]
[1741218138954,0.96482388,598.64,597.91,0.4974985]
[1741218139148,1.20298731,598.63,597.91,0.4974985]
[1741218139350,2.16781119,598.63,597.91,0.4974985]
[1741218139554,0.96482388,598.62,597.91,0.4974985]
[1741218139751,2.50939155,598.67,597.91,0.4974985]
[1741218139952,1.20298731,598.68,597.91,0.4974985]
[1741218139953,0.96482388,598.66,597.91,0.4974985]
[1741218140159,0.96482388,598.65,597.91,0.4974985]
[1741218140457,1.20298731,598.65,597.91,0.4974985]
[1741218140857,2.16781119,598.65,597.91,0.4974985]
[1741218141058,0.96482388,598.64,597.91,0.4974985]
[1741218141252,1.127,598.7,597.91,0.4974985]
[1741218145760,2.09186125,598.7,597.91,0.4974985]
[1741218146259,1.127,598.7,597.91,0.4974985]
[1741218158773,2.09129468,598.7,597.91,0.4974985]
[1741218158968,3.29445627,598.7,597.91,0.4974985]
[1741218159170,2.50716617,598.69,597.91,0.4974985]
[1741218159574,0.96429468,598.69,597.91,0.4974985]
[1741218159974,3.24728309,598.86,597.91,0.4974985]
[1741218159975,3.00963132,598.85,597.91,0.4974985]
[1741218160174,2.50838128,598.84,597.91,0.4974985]
[1741218160374,0.96476203,598.83,597.91,0.4974985]
[1741218160573,0.96476203,598.82,597.91,0.4974985]
[1741218160772,2.16792362,598.81,597.91,0.4974985]
[1741218160969,0.96476203,598.8,597.91,0.4974985]
[1741218161169,0.96476203,598.79,597.91,0.4974985]
[1741218161371,0.96476203,598.78,597.91,0.4974985]
[1741218161568,2.16792362,598.77,597.91,0.4974985]
[1741218161770,0.96476203,598.76,597.91,0.4974985]
[1741218161969,2.16792362,598.75,597.91,0.4974985]
[1741218162173,0.96476203,598.74,597.91,0.4974985]
[1741218162373,0.96476203,598.73,597.91,0.4974985]
[1741218162571,0.96476203,598.72,597.91,0.4974985]
[1741218162772,0.96476203,598.71,597.91,0.4974985]
[1741218163076,2.16792362,598.7,597.91,0.4974985]
[1741218163270,0.96476203,598.69,597.91,0.4974985]
[1741218163476,0.96476203,598.68,597.91,0.4974985]
[1741218163677,1.20316159,598.68,597.91,0.4974985]
[1741218163977,2.16792362,598.68,597.91,0.4974985]
[1741218164178,0.96476203,598.67,597.91,0.4974985]
[1741218164773,1.20316159,598.66,597.91,0.4974985]
[1741218164972,2.16792362,598.66,597.91,0.4974985]
[1741218165173,0.96476203,598.65,597.91,0.4974985]
[1741218165379,2.16792362,598.65,597.92,1.24565047]
[1741218165575,0.96476203,598.64,597.92,1.24565047]
[1741218166176,2.16792362,598.68,597.93,0.33448731]
[1741218166376,0.96476203,598.67,597.93,0.33448731]
[1741218166579,0.96476203,598.66,597.93,0.33448731]
[1741218166782,0.96476203,598.65,597.93,0.33448731]
[1741218166980,1.20316159,598.66,597.93,0.33448731]
[1741218166981,0.96476203,598.64,597.93,0.33448731]
[1741218167181,0.96476203,598.63,597.93,0.33448731]
[1741218167381,1.20316159,598.63,597.93,0.33448731]
[1741218167577,1.20316159,598.63,597.93,1.58013778]
[1741218167775,1.20316159,598.62,597.93,1.58013778]
[1741218167978,2.16934636,598.62,597.93,1.58013778]
[1741218168278,0.96618477,598.61,597.93,1.58013778]
[1741218168881,0.96618477,598.61,597.93,1.74313778]
[1741218169177,2.16934636,598.67,597.93,1.74313778]
[1741218169385,0.96618477,598.66,597.93,1.74313778]
[1741218169984,1.20316159,598.65,597.93,0.49748731]
[1741218170378,1.20316159,598.64,597.93,0.49748731]
[1741218170982,1.20316159,598.63,597.93,0.49748731]
[1741218171584,1.20316159,598.62,597.93,0.49748731]
[1741218172277,2.16934636,598.62,597.93,0.49748731]
[1741218172481,0.96618477,598.61,597.93,0.49748731]
[1741218172684,1.20316159,598.62,597.93,0.49748731]
[1741218175182,1.20316159,598.61,597.93,0.49748731]
[1741218175587,1.20316159,598.6,597.93,0.49748731]
[1741218176390,0.96642044,598.64,597.93,0.49748731]
[1741218176690,0.96642044,598.63,597.93,0.49748731]
[1741218176989,0.96642044,598.62,597.93,0.49748731]
[1741218177182,0.96642044,598.61,597.93,0.49748731]
[1741218177383,0.96642044,598.6,597.93,0.49748731]
[1741218177586,0.96642044,598.59,597.93,0.49748731]
[1741218177789,0.96642044,598.58,597.93,0.49748731]
[1741218178092,0.96642044,598.57,597.93,0.49748731]
[1741218178295,0.96642044,598.56,597.93,0.49748731]
[1741218178494,0.96642044,598.57,597.93,0.49748731]
[1741218178688,1.20316159,598.55,597.93,0.49748731]
[1741218179494,1.20316159,598.54,597.93,0.49748731]
[1741218179890,1.20316159,598.53,597.93,0.49748731]
[1741218180492,3.71641146,598.77,597.93,0.49748731]
[1741218180693,2.51324987,598.76,597.93,0.49748731]
[1741218180890,0.96642044,598.75,597.93,0.49748731]